{"text_format":"1","workbook":"xlsx","n_sheets":4,"sheets":["Hoja1","Hoja2","RESUMEN","CONSOLIDADO"],"not_rendered":{"charts":0,"images":5,"macros":1,"external_links":0,"defined_names":0,"comments":0,"pivot_tables":0},"unopened":[],"bounds":{"document_bytes":16777216,"sheet_cells":100000,"rows_first":2000,"rows_last":500,"rows_between":2000,"halvings":0,"cell_chars":16384,"cell_head_chars":4096},"cells_cut":0,"cells_raw":0,"read":"whole","date_system":"1900"}

{"sheet":"Hoja1","index":0,"n_rows":43,"n_cols":17,"rows_kept":43,"cut":false,"hidden":false,"merged":[[39,1,39,12],[41,1,41,12],[42,1,42,12],[47,2,47,12],[46,0,46,1],[45,2,45,5],[40,1,40,12],[35,1,35,7],[35,8,35,12],[37,1,37,12],[38,1,38,12],[23,2,23,7],[26,2,26,7],[28,2,28,7],[27,2,27,7],[32,2,32,7],[29,2,29,7],[33,2,33,7],[34,2,34,7],[30,1,31,7],[18,2,18,7],[19,2,19,7],[20,2,20,7],[24,2,24,7],[25,2,25,7],[21,1,22,7],[17,2,17,7],[15,2,15,7],[16,2,16,7],[13,2,13,7],[14,1,14,7],[9,0,9,12],[3,0,3,12],[7,2,7,5],[8,2,8,5],[7,7,7,12],[8,7,8,12],[5,0,5,1],[5,2,5,5],[6,2,6,5],[6,0,6,1],[7,0,7,1],[8,0,8,1],[5,7,5,12],[6,7,6,12]]}
[]
[]
[]
["ESCALA DE VALORACIÓN DEL DOCENTE"]
[]
["I.E.:",null,null,null,null,null,"FECHA:"]
["NIVEL:",null,null,null,null,null,"LUGAR:"]
["DOCENTE:",null,null,null,null,null,"GRADO:"]
["AREA:",null,null,null,null,null,"SECCIÓN:"]
["INSTRUCCIONES: Marcar con una \"X\" la opción que estime que cumple o realiza en sus sesiones de aprendizaje."]
[]
[]
[]
[null,"Nº","CRITERIOS",null,null,null,null,null,"Nunca","Pocas veces","A veces","Casi siempre","Siempre"]
[null,"I. CLIMA PARA EL APRENDIZAJE",null,null,null,null,null,null,"0 Ptos.","1 Pto.","2 Ptos.","3 Ptos.","4 Ptos"]
[null,1,"Tomo en cuenta las opiniones de los estudiantes.",null,null,null,null,null,null,null,null,null,null,null,null,null,{"$f":"P16-1","v":-1}]
[null,2,"Creo un clima propicio para el aprendizaje y la convivencia.",null,null,null,null,null,null,null,null,null,null,null,null,null,{"$f":"P17-1","v":-1}]
[null,3,"Comunico mis expectativas sobre sus aprendizajes.",null,null,null,null,null,null,null,null,null,null,null,null,null,-1]
[null,4,"Construyo relaciones interpersonales con y entre los estudiantes.",null,null,null,null,null,null,null,null,null,null,null,null,null,-1]
[null,5,"Reflexiono con los estudiantes sobre experiencias vividas de discriminación.",null,null,null,null,null,null,null,null,null,null,null,null,null,-1]
[null,6,"Promuevo el cumplimiento de los acuerdos de convivencia.",null,null,null,null,null,null,null,null,null,null,null,null,null,-1]
[null,"II. PROCESO DE ENSEÑANZA APRENDIZAJE",null,null,null,null,null,null,"Nunca","Pocas veces","A veces","Casi siempre","Siempre"]
[null,null,null,null,null,null,null,null,"0 Ptos.","1 Pto.","2 Ptos.","3 Ptos.","4 Ptos"]
[null,7,"Propicio que utilicen los conocimientos logrados en la solución de problemas reales.",null,null,null,null,null,null,null,null,null,null,null,null,null,-1]
[null,8,"Constato que los estudiantes comprendan los propósitos de la sesión.",null,null,null,null,null,null,null,null,null,null,null,null,null,-1]
[null,9,"Explico con claridad los conocimientos desarrollados.",null,null,null,null,null,null,null,null,null,null,null,null,null,-1]
[null,10,"Promuevo el desarrollo del pensamiento crítico y creativo a través de actividades que buscan la solución de problemas reales.",null,null,null,null,null,null,null,null,null,null,null,null,null,-1]
[null,11,"Utilizo diversos materiales y recursos educativos para el logro de los aprendizajes.",null,null,null,null,null,null,null,null,null,null,null,null,null,-1]
[null,12,"Organizo de manera adecuada el tiempo en las actividades consideradas en la sesión de aprendizaje.",null,null,null,null,null,null,null,null,null,null,null,null,null,-1]
[null,13,"Utilizo estrategias para atender las necesidades individuales de aprendizaje de los estudiantes.",null,null,null,null,null,null,null,null,null,null,null,null,null,-1]
[null,"III. EVALUACIÓN DE LOS APRENDIZAJES",null,null,null,null,null,null,"Nunca","Pocas veces","A veces","Casi siempre","Siempre"]
[null,null,null,null,null,null,null,null,"0 Ptos.","1 Pto.","2 Ptos.","3 Ptos.","4 Ptos"]
[null,14,"Utilizo instrumentos de evaluación de forma diferenciada para evidenciar los aprendizajes esperados.",null,null,null,null,null,null,null,null,null,null,null,null,null,-1]
[null,15,"Retroalimento a los estudiantes de acuerdo a los resultados de la evaluación.",null,null,null,null,null,null,null,null,null,null,null,null,null,-1]
[null,16,"Evalúo los aprendizajes en función a la competencia, capacidades e indicadores establecidos en la sesión de aprendizaje.",null,null,null,null,null,null,null,null,null,null,null,null,null,-1]
[null,"PUNTAJE TOTAL",null,null,null,null,null,null,{"$f":"IF(SUM(P16:P35)=0,\"\",P43)","v":""},null,null,null,null,null,null,{"$f":"COUNTIF($Q$16:$Q$35,\"=0\")","v":0}]
[null,null,null,null,null,null,null,null,null,null,null,null,null,null,null,{"$f":"COUNTIF($Q$16:$Q$35,\"=1\")","v":0}]
[null,"¿Qué es lo que más me gustó de mi clase de hoy?",null,null,null,null,null,null,null,null,null,null,null,null,null,{"$f":"COUNTIF($Q$16:$Q$35,\"=2\")","v":0}]
[null,null,null,null,null,null,null,null,null,null,null,null,null,null,null,{"$f":"COUNTIF($Q$16:$Q$35,\"=3\")","v":0}]
[null,"¿Qué aspectos debo mejorar de mi clase de hoy?",null,null,null,null,null,null,null,null,null,null,null,null,null,{"$f":"COUNTIF($Q$16:$Q$35,\"=4\")","v":0}]
[null,null,null,null,null,null,null,null,null,null,null,null,null,null,null,{"$f":"SUM(P36*0,P37*1,P38*2,P39*3,P40*4)","v":0}]
[null,"¿Cómo voy a realizar mi próxima clase?",null,null,null,null,null,null,null,null,null,null,null,null,null,{"$f":"P41*20/64","v":0}]
[null,null,null,null,null,null,null,null,null,null,null,null,null,null,null,{"$f":"ROUND(P42,0)","v":0}]

{"sheet":"Hoja2","index":1,"n_rows":13,"n_cols":2,"rows_kept":13,"cut":false,"hidden":true,"merged":[]}
["NIVEL","AREAS"]
[]
["INICIAL","MATEMÁTICA"]
["PRIMARIA","COMUNICACIÓN"]
["SECUNDARIA","INGLÉS"]
[null,"ARTE"]
[null,"HISTORIA, GEOGRAFÍA Y ECONOMÍA"]
[null,"FORMACIÓN CIUDADANA Y CÍVICA"]
[null,"PERSONA, FAMILIA Y RELACIONES HUMANAS"]
[null,"EDUCACIÓN FÍSICA"]
[null,"EDUCACIÓN RELIGIOSA"]
[null,"CIENCIA, TECNOLOGÍA Y AMBIENTE"]
[null,"EDUCACIÓN PARA EL TRABAJO"]

{"sheet":"RESUMEN","index":2,"n_rows":7,"n_cols":6,"rows_kept":7,"cut":false,"hidden":false,"merged":[[2,0,2,6],[3,0,3,1],[3,2,3,3]]}
[]
[]
["RESUMEN DE LA ESCALA DE VALORACIÓN DEL DOCENTE"]
[]
[]
["FECHA","DATOS INFORMATIVOS","I. CLIMA PARA EL APRENDIZAJE","II. PROCESO DE ENSEÑANZA APRENDIZAJE","III. EVALUACIÓN DE LOS APRENDIZAJES","PREGUNTAS FINALES/PUNTAJE FINAL"]
[{"$f":"IF(Hoja1!H6=0,\"\",Hoja1!H6)","v":""},{"$f":"CONCATENATE(\"I.E.: \",Hoja1!C6, \". Lugar: \",Hoja1!H7,\".  Nivel: \",Hoja1!C7,  \". Docente: \", Hoja1!C8,\". Area: \", Hoja1!C9, \". Grado: \", Hoja1!H8,\". Sección: \", Hoja1!H9)","v":"I.E.: . Lugar: .  Nivel: . Docente: . Area: . Grado: . Sección: "},{"$f":"CONCATENATE(IF(Hoja1!P16=1,\"Nunca tomo en cuenta las opiniones de los estudiantes. \", IF(Hoja1!P16=2,\"Pocas veces tomo en cuenta las opiniones de los estudiantes. \",  IF(Hoja1!P16=3,\"A veces tomo en cuenta las opiniones de los estudiantes. \", IF(Hoja1!P16=4,\"Casi siempre tomo en cuenta las opiniones de los estudiantes. \", IF(Hoja1!P16=5,\"Siempre tomo en cuenta las opiniones de los estudiantes. \",\"\"))))),IF(Hoja1!P17=1,\"Nunca creo un clima propicio para el aprendizaje y la convivencia. \", IF(Hoja1!P17=2,\"Pocas veces creo un clima propicio para el aprendizaje y la convivencia. \",  IF(Hoja1!P17=3,\"A veces creo un clima propicio para el aprendizaje y la convivencia. \", IF(Hoja1!P17=4,\"Casi siempre creo un clima propicio para el aprendizaje y la convivencia. \", IF(Hoja1!P17=5,\"Siempre creo un clima propicio para el aprendizaje y la convivencia. \",\"\"))))),IF(Hoja1!P18=1,\"Nunca comunico mis expectativas sobre sus aprendizajes. \", IF(Hoja1!P18=2,\"Pocas veces  comunico mis expectativas sobre sus aprendizajes.  \",  IF(Hoja1!P18=3,\"A veces  comunico mis expectativas sobre sus aprendizajes.  \", IF(Hoja1!P18=4,\"Casi siempre  comunico mis expectativas sobre sus aprendizajes. \", IF(Hoja1!P18=5,\"Siempre  comunico mis expectativas sobre sus aprendizajes. \",\"\"))))),IF(Hoja1!P19=1,\"Nunca construyo relaciones interpersonales con y entre los estudiantes. \", IF(Hoja1!P19=2,\"Pocas veces  construyo relaciones interpersonales con y entre los estudiantes. \",  IF(Hoja1!P19=3,\"A veces  construyo relaciones interpersonales con y entre los estudiantes. \", IF(Hoja1!P19=4,\"Casi siempre  construyo relaciones interpersonales con y entre los estudiantes. \", IF(Hoja1!P19=5,\"Siempre  construyo relaciones interpersonales con y entre los estudiantes. \",\"\"))))),IF(Hoja1!P20=1,\"Nunca reflexiono con los estudiantes sobre experiencias vividas de discriminación. \", IF(Hoja1!P20=2,\"Pocas veces  reflexiono con los estudiantes sobre experiencias vividas de discriminación. \",  IF(Hoja1!P20=3,\"A veces  reflexiono con los estudiantes sobre experiencias vividas de discriminación. \", IF(Hoja1!P20=4,\"Casi siempre reflexiono con los estudiantes sobre experiencias vividas de discriminación. \", IF(Hoja1!P20=5,\"Siempre  reflexiono con los estudiantes sobre experiencias vividas de discriminación. \",\"\"))))),,IF(Hoja1!P21=1,\"Nunca promuevo el cumplimiento de los acuerdos de convivencia. \", IF(Hoja1!P21=2,\"Pocas veces promuevo el cumplimiento de los acuerdos de convivencia.  \",  IF(Hoja1!P21=3,\"A veces  promuevo el cumplimiento de los acuerdos de convivencia. \", IF(Hoja1!P21=4,\"Casi siempre promuevo el cumplimiento de los acuerdos de convivencia. \", IF(Hoja1!P21=5,\"Siempre promuevo el cumplimiento de los acuerdos de convivencia. \",\"\"))))))","v":""},{"$f":"CONCATENATE(IF(Hoja1!P24=1,\"Nunca propicio que utilicen los conocimientos logrados en la solución de problemas reales. \", IF(Hoja1!P24=2,\"Pocas veces propicio que utilicen los conocimientos logrados en la solución de problemas reales. \",  IF(Hoja1!P24=3,\"A veces propicio que utilicen los conocimientos logrados en la solución de problemas reales. \", IF(Hoja1!P24=4,\"Casi siempre propicio que utilicen los conocimientos logrados en la solución de problemas reales. \", IF(Hoja1!P24=5,\"Siempre propicio que utilicen los conocimientos logrados en la solución de problemas reales. \",\"\"))))), IF(Hoja1!P25=1,\"Nunca constato que los estudiantes comprendan los propósitos de la sesión. \", IF(Hoja1!P25=2,\"Pocas veces constato que los estudiantes comprendan los propósitos de la sesión. \",  IF(Hoja1!P25=3,\"A veces constato que los estudiantes comprendan los propósitos de la sesión. \", IF(Hoja1!P25=4,\"Casi siempre constato que los estudiantes comprendan los propósitos de la sesión. \", IF(Hoja1!P25=5,\"Siempre constato que los estudiantes comprendan los propósitos de la sesión. \",\"\"))))),IF(Hoja1!P26=1,\"Nunca explico con claridad los conocimientos desarrollados. \", IF(Hoja1!P26=2,\"Pocas veces explico con claridad los conocimientos desarrollados. \",  IF(Hoja1!P26=3,\"A veces explico con claridad los conocimientos desarrollados. \", IF(Hoja1!P26=4,\"Casi siempre explico con claridad los conocimientos desarrollados. \", IF(Hoja1!P26=5,\"Siempre explico con claridad los conocimientos desarrollados. \",\"\"))))),IF(Hoja1!P27=1,\"Nunca promuevo el desarrollo del pensamiento crítico y creativo. \", IF(Hoja1!P27=2,\"Pocas veces promuevo el desarrollo del pensamiento crítico y creativo. \",  IF(Hoja1!P27=3,\"A veces promuevo el desarrollo del pensamiento crítico y creativo. \", IF(Hoja1!P27=4,\"Casi siempre promuevo el desarrollo del pensamiento crítico y creativo. \", IF(Hoja1!P27=5,\"Siempre promuevo el desarrollo del pensamiento crítico y creativo. \",\"\"))))),IF(Hoja1!P28=1,\"Nunca utilizo diversos materiales y recursos educativos para el logro de los aprendizajes. \", IF(Hoja1!P28=2,\"Pocas veces utilizo diversos materiales y recursos educativos para el logro de los aprendizajes. \",  IF(Hoja1!P28=3,\"A veces utilizo diversos materiales y recursos educativos para el logro de los aprendizajes. \", IF(Hoja1!P28=4,\"Casi siempre utilizo diversos materiales y recursos educativos para el logro de los aprendizajes. \", IF(Hoja1!P28=5,\"Siempre utilizo diversos materiales y recursos educativos para el logro de los aprendizajes. \",\"\"))))),IF(Hoja1!P29=1,\"Nunca organizo de manera adecuada el tiempo en las actividades consideradas en la sesión de aprendizaje. \", IF(Hoja1!P29=2,\"Pocas veces organizo de manera adecuada el tiempo en las actividades consideradas en la sesión de aprendizaje. \",  IF(Hoja1!P29=3,\"A veces organizo de manera adecuada el tiempo en las actividades consideradas en la sesión de aprendizaje. \", IF(Hoja1!P29=4,\"Casi siempre organizo de manera adecuada el tiempo en las actividades consideradas en la sesión de aprendizaje. \", IF(Hoja1!P29=5,\"Siempre organizo de manera adecuada el tiempo en las actividades consideradas en la sesión de aprendizaje. \",\"\"))))),IF(Hoja1!P30=1,\"Nunca utilizo estrategias para atender las necesidades individuales de aprendizaje de los estudiantes. \", IF(Hoja1!P30=2,\"Pocas veces utilizo estrategias para atender las necesidades individuales de aprendizaje de los estudiantes. \",  IF(Hoja1!P30=3,\"A veces utilizo estrategias para atender las necesidades individuales de aprendizaje de los estudiantes. \", IF(Hoja1!P30=4,\"Casi siempre utilizo estrategias para atender las necesidades individuales de aprendizaje de los estudiantes. \", IF(Hoja1!P30=5,\"Siempre utilizo estrategias para atender las necesidades individuales de aprendizaje de los estudiantes. \",\"\"))))))","v":""},{"$f":"CONCATENATE( IF(Hoja1!P33=1,\"Nunca utilizo instrumentos de evaluación de forma diferenciada. \", IF(Hoja1!P33=2,\"Pocas veces utilizo instrumentos de evaluación de forma diferenciada. \",  IF(Hoja1!P33=3,\"A veces utilizo instrumentos de evaluación de forma diferenciada. \", IF(Hoja1!P33=4,\"Casi siempre utilizo instrumentos de evaluación de forma diferenciada. \", IF(Hoja1!P33=5,\"Siempre utilizo instrumentos de evaluación de forma diferenciada. \",\"\"))))),IF(Hoja1!P34=1,\"Nunca retroalimento a los estudiantes de acuerdo a los resultados de la evaluación. \", IF(Hoja1!P34=2,\"Pocas veces  retroalimento a los estudiantes de acuerdo a los resultados de la evaluación.  \",  IF(Hoja1!P34=3,\"A veces  retroalimento a los estudiantes de acuerdo a los resultados de la evaluación. \", IF(Hoja1!P34=4,\"Casi siempre  retroalimento a los estudiantes de acuerdo a los resultados de la evaluación.  \", IF(Hoja1!P34=5,\"Siempre  retroalimento a los estudiantes de acuerdo a los resultados de la evaluación.  \",\"\"))))),IF(Hoja1!P35=1,\"Nunca evalúo los aprendizajes en función a la competencia, capacidades e indicadores establecidos en la sesión de aprendizaje. \", IF(Hoja1!P35=2,\"Pocas veces evalúo los aprendizajes en función a la competencia, capacidades e indicadores establecidos en la sesión de aprendizaje. \",  IF(Hoja1!P35=3,\"A veces evalúo los aprendizajes en función a la competencia, capacidades e indicadores establecidos en la sesión de aprendizaje. \", IF(Hoja1!P35=4,\"Casi siempre evalúo los aprendizajes en función a la competencia, capacidades e indicadores establecidos en la sesión de aprendizaje.  \", IF(Hoja1!P35=5,\"Siempre evalúo los aprendizajes en función a la competencia, capacidades e indicadores establecidos en la sesión de aprendizaje. \",\"\"))))))","v":""},{"$f":"CONCATENATE(Hoja1!B38,\" \",Hoja1!B39,\" \",Hoja1!B40,\" \",Hoja1!B41,\" \",Hoja1!B42,\" \",Hoja1!B43,\" \", \"Puntaje Final: \"&Hoja1!$I$36)","v":"¿Qué es lo que más me gustó de mi clase de hoy?  ¿Qué aspectos debo mejorar de mi clase de hoy?  ¿Cómo voy a realizar mi próxima clase?  Puntaje Final: "}]

{"sheet":"CONSOLIDADO","index":3,"n_rows":5,"n_cols":6,"rows_kept":5,"cut":false,"hidden":false,"merged":[[2,0,2,5],[3,0,3,1],[3,2,3,3]]}
[]
[]
["CONSOLIDADO DE LA ESCALA DE VALORACIÓN DEL DOCENTE"]
[]
["FECHA","DATOS INFORMATIVOS","I. CLIMA PARA EL APRENDIZAJE","II. PROCESO DE ENSEÑANZA APRENDIZAJE","III. EVALUACIÓN DE LOS APRENDIZAJES","PREGUNTAS FINALES/PUNTAJE FINAL"]